bitfinex-derivatives/quotes_ETHF0:USTF0_20250106
["timestamp","ask_amount","ask_price","bid_price","bid_amount"]
[1736195049844,2.12347962,3698.4,3698.3,0.27024]
[1736195050139,2.12347962,3698.6,3698.3,40.8]
[1736195050437,2.12347962,3698.6,3698.5,3.47803]
[1736195051233,3.18521943,3698.8,3698.5,5.3467842]
[1736195051433,3.18521943,3698.8,3698.7,0.27021]
[1736195051837,1.12846,3699.5,3699.4,0.27016]
[1736195052034,3.18521943,3699.6,3699.5,0.27015]
[1736195052542,3.18521943,3699.6,3699.5,41.07015]
[1736195053240,3.2078,3700.0,3699.5,40.8]
[1736195053644,0.27013,3699.9,3699.8,0.27013]
[1736195054038,3.2078,3700.0,3699.5,40.8]
[1736195054241,3.2078,3700.0,3699.8,0.27013]
[1736195054441,0.27012,3699.9,3699.8,0.27013]
[1736195056935,5.3467842,3700.0,3699.3,0.4227]
[1736195057240,0.27016,3699.4,3699.3,0.69286]
[1736195057637,2.1389842,3699.5,3699.3,0.69286]
[1736195057638,2.4091442,3699.5,3699.4,0.27016]
[1736195058040,2.4091442,3699.5,3699.3,0.4227]
[1736195058041,2.1389842,3699.5,3699.3,0.4227]
[1736195058243,2.5772842,3699.8,3699.3,0.4227]
[1736195058846,0.4383,3699.8,3699.7,0.27014]
[1736195059142,0.27013,3699.9,3699.8,0.27013]
[1736195059348,0.27013,3699.9,3699.3,1.09813]
[1736195059349,3.2078,3700.0,3699.3,1.09813]
[1736195059538,0.27014,3699.8,3699.7,0.27014]
[1736195060241,0.27013,3699.8,3699.7,0.27014]
[1736195060444,0.27014,3699.8,3699.7,0.27013]
[1736195060945,0.27014,3699.7,3699.6,0.27014]
[1736195062351,6.62015914,3699.9,3699.3,0.4227]
[1736195062544,0.27013,3699.8,3699.3,0.4227]
[1736195062745,0.27013,3699.8,3699.7,0.27013]
[1736195063141,0.27014,3699.8,3699.7,0.27014]
[1736195063345,0.27014,3699.7,3699.6,0.27014]
[1736195064151,0.27015,3699.6,3699.5,0.27015]
[1736195064845,6.62015914,3699.9,3699.4,40.8]
[1736195065045,0.27015,3699.7,3699.6,0.27014]
[1736195065749,0.27015,3699.6,3699.5,0.27015]
[1736195065949,6.62015914,3699.9,3699.4,40.8]
[1736195066148,0.27015,3699.7,3699.6,0.27014]
[1736195066352,0.27015,3699.7,3699.4,40.8]
[1736195066353,0.27015,3699.6,3699.5,0.27015]
[1736195066542,0.70035,3699.6,3699.5,0.27015]
[1736195067746,0.27015,3699.6,3699.5,0.27015]
[1736195071457,0.27014,3699.7,3699.6,0.27014]
[1736195071762,0.27014,3699.8,3699.7,0.27013]
[1736195072058,0.27013,3699.8,3699.7,0.27014]
[1736195072251,0.27015,3699.7,3699.6,0.27014]
[1736195080455,0.27015,3699.7,3699.4,40.8]
[1736195080456,0.4541,3699.8,3699.7,0.27014]
[1736195080660,0.70131,3700.2,3700.1,0.27011]
[1736195081560,0.4312,3700.2,3700.1,0.27011]
[1736195081760,0.889,3700.5,3700.1,2.1389842]
[1736195082063,1.15908,3700.5,3700.4,0.27009]
[1736195082357,0.71607,3700.6,3700.5,0.27008]
[1736195082864,0.27009,3700.5,3700.4,0.27008]
[1736195083160,0.27009,3700.5,3700.4,41.07008]
[1736195084363,0.446,3700.6,3700.4,40.8]
[1736195084666,0.71608,3700.6,3700.5,0.27008]
[1736195084963,0.71608,3700.6,3700.5,0.70958]
[1736195085153,0.446,3700.6,3700.5,0.70958]
[1736195085359,0.71607,3700.6,3700.5,0.70958]
[1736195086058,3.2078,3700.9,3700.5,0.70958]
[1736195086259,0.519,3702.2,3700.5,0.70958]
[1736195086260,0.27001,3701.5,3701.4,0.27001]
[1736195086563,0.27,3701.7,3701.4,3.2078]
[1736195086761,7.23267882,3701.9,3701.5,0.4312]
[1736195087067,0.27,3701.6,3701.5,40.8]
[1736195087568,0.4346,3701.6,3701.4,3.2078]
[1736195087769,0.27003,3701.3,3701.1,0.27003]
[1736195088062,0.4416,3701.2,3701.1,0.27003]
[1736195088567,0.4416,3701.2,3701.1,41.07003]
[1736195088768,0.7046,3701.6,3701.1,40.8]
[1736195089066,0.4346,3701.6,3701.1,40.8]
[1736195089270,0.27001,3701.5,3701.1,40.8]
[1736195089460,0.27001,3701.5,3701.4,0.27001]
[1736195089660,0.4346,3701.6,3701.1,0.27003]
[1736195089857,0.27002,3701.3,3701.1,0.27003]
[1736195090061,0.27002,3701.4,3701.0,5.7779842]
[1736195090259,0.27002,3701.4,3701.2,0.27003]
[1736195090768,0.4523,3701.5,3701.0,5.7779842]
[1736195090967,0.27002,3701.4,3701.2,0.27002]
[1736195091375,0.72231,3701.5,3701.4,0.27001]
[1736195092572,0.4523,3701.5,3701.4,0.27001]
[1736195092976,3.2078,3702.1,3702.0,0.26997]
[1736195093174,0.4479,3702.9,3702.0,5.3319684]
[1736195093376,0.4479,3702.9,3702.8,2.4088942]
[1736195093776,3.2078,3703.7,3702.8,42.9389842]
[1736195093975,0.69006,3703.6,3703.3,0.26987]
[1736195094271,0.26981,3704.2,3703.8,0.26984]
[1736195094471,3.2078,3704.6,3704.1,2.1389842]
[1736195094671,3.2078,3704.6,3703.6,3.2078]
[1736195094871,7.34558349,3704.5,3703.7,40.8]
[1736195095069,0.26982,3704.1,3703.8,2.1389842]
[1736195095279,0.26981,3704.3,3703.9,0.26983]
[1736195095482,0.4202,3704.4,3703.8,2.1389842]
[1736195095776,0.26982,3704.2,3703.8,2.4088242]
[1736195095981,0.4202,3704.4,3704.1,2.1389842]
[1736195096370,3.2078,3704.6,3704.1,2.1389842]
[1736195096679,0.26979,3704.5,3704.4,2.1389842]
[1736195097177,3.47758,3704.6,3704.4,2.1389842]
[1736195097370,3.2078,3704.6,3704.4,2.1389842]
[1736195097569,3.2078,3704.6,3704.4,2.4087742]
[1736195097877,3.2078,3704.6,3703.7,40.8]
[1736195098075,3.2078,3704.6,3703.7,42.9389842]
[1736195098076,0.26982,3704.2,3703.7,42.9389842]
[1736195098268,0.26979,3704.5,3704.0,2.1389842]
[1736195098579,0.26979,3704.5,3703.6,3.2078]
[1736195098580,3.47759,3704.6,3704.3,2.4087842]
[1736195098784,3.635,3705.1,3704.3,5.3467842]
[1736195099084,0.26978,3704.6,3704.3,3.2078]
[1736195099482,6.68020746,3705.0,3704.3,3.2078]
[1736195099675,0.26979,3704.5,3704.3,3.2078]
[1736195099879,6.68020746,3705.0,3704.3,3.2078]
[1736195100285,0.26978,3704.7,3704.3,3.4776]
[1736195100485,6.68020746,3705.0,3704.3,3.2078]
[1736195100682,0.26978,3704.6,3704.3,3.2078]
[1736195100888,6.68020746,3705.0,3704.3,3.2078]
[1736195101092,2.1389842,3704.9,3704.1,0.4176]
[1736195101284,2.1389842,3704.2,3703.1,3.2078]
[1736195101483,8.81919166,3705.0,3703.1,3.2078]
[1736195101484,0.26988,3703.2,3703.1,3.2078]
[1736195101886,0.26988,3703.2,3702.9,0.4346]
[1736195101887,0.2699,3703.0,3702.9,0.4346]
[1736195102181,0.26993,3702.5,3702.4,44.0078]
[1736195102484,3.88257,3702.9,3702.1,0.26996]
[1736195102686,0.67479,3702.8,3702.0,0.4346]
[1736195102884,2.1389842,3702.7,3702.1,40.8]
[1736195103186,0.26996,3702.2,3702.1,40.8]
[1736195111691,2.4089442,3702.2,3702.1,40.8]
[1736195112594,0.26996,3702.2,3702.1,40.8]
[1736195114092,0.27003,3701.2,3701.1,3.2078]
[1736195114683,0.67508,3701.2,3700.5,0.4311]
[1736195114888,0.27007,3700.7,3700.5,0.70118]
[1736195115094,0.27007,3700.7,3700.6,40.8]
[1736195117394,0.27009,3700.4,3700.3,3.2078]
[1736195117599,3.2078,3700.6,3699.8,3.6389]
[1736195117801,0.27012,3700.0,3699.9,0.27012]
[1736195118096,0.27012,3699.9,3699.8,3.90903]
[1736195118299,0.27012,3699.9,3699.8,3.6389]
[1736195119093,0.27012,3699.9,3699.8,44.70903]
[1736195120791,0.27007,3700.7,3700.6,0.27007]
[1736195121196,0.27007,3700.6,3700.5,3.47787]
[1736195121390,0.27007,3700.6,3700.5,44.27787]
[1736195121596,0.27007,3700.6,3700.5,44.0078]
[1736195123807,0.27007,3700.6,3700.5,3.2078]
[1736195124295,7.15196979,3700.6,3700.5,3.2078]
[1736195125003,6.88189979,3700.6,3700.1,40.8]
[1736195125301,0.2701,3700.2,3700.1,40.8]
[1736195128304,0.2701,3700.2,3700.1,44.0078]
[1736195128602,0.2701,3700.2,3700.1,46.4168942]
[1736195129195,0.2701,3700.2,3700.1,46.1467842]
[1736195129601,0.2701,3700.2,3700.1,46.4168942]
[1736195129801,0.2701,3700.2,3700.1,46.1467842]
[1736195130298,0.2701,3700.2,3700.1,44.0078]
[1736195130602,0.2701,3700.2,3700.1,40.8]
[1736195130809,0.27017,3699.3,3699.2,5.3467842]
[1736195131000,0.27017,3699.3,3699.2,6.0522542]
[1736195131199,0.67532,3699.9,3699.2,5.7820842]
[1736195131404,0.67532,3699.9,3699.6,5.3467842]
[1736195131704,0.27014,3699.7,3699.6,5.6169242]
[1736195132001,0.27013,3699.9,3699.8,0.27012]
[1736195132604,0.27012,3700.0,3699.9,0.27012]
[1736195132903,0.27007,3700.8,3700.7,0.27006]
[1736195133103,0.67508,3701.2,3700.6,3.47787]
[1736195133104,0.27007,3700.7,3700.6,3.47787]
[1736195133305,0.27007,3700.7,3700.6,3.2078]
[1736195133506,0.27007,3700.7,3700.6,44.0078]
[1736195134605,0.27007,3700.7,3700.6,40.8]
[1736195134904,0.27007,3700.7,3699.6,3.6626]
[1736195134905,0.67527,3700.2,3699.6,3.6626]
[1736195135102,0.27013,3699.8,3699.7,2.4091242]
[1736195135302,1.068,3700.5,3699.7,42.9389842]
[1736195135504,0.27011,3700.1,3700.0,0.27011]
[1736195135703,0.27011,3700.2,3700.1,0.27011]
[1736195135899,0.27011,3700.2,3700.0,2.1389842]
[1736195135900,0.8367,3700.6,3700.0,2.1389842]
[1736195136105,0.27008,3700.5,3700.4,0.27008]
[1736195136500,0.27009,3700.5,3700.4,0.27009]
[1736195136902,0.67513,3700.9,3700.0,5.3467842]
[1736195137107,0.27011,3700.2,3700.1,0.2701]
[1736195138111,0.2701,3700.3,3700.2,0.27009]
[1736195140707,5.3467842,3701.2,3700.0,5.3467842]
[1736195140907,0.27011,3700.1,3700.0,3.2078]
[1736195143011,0.27012,3699.9,3699.8,40.8]
[1736195143208,0.27014,3699.7,3699.6,3.2078]
[1736195143409,0.27015,3699.6,3699.5,0.27015]
[1736195143611,0.27015,3699.6,3699.5,41.07015]
[1736195145612,0.27015,3699.6,3699.5,40.8]
[1736195147616,6.8925929,3699.6,3699.5,40.8]
[1736195147818,0.27017,3699.3,3699.2,3.2078]
[1736195148209,0.27017,3699.3,3699.2,44.27797]
[1736195149119,0.27017,3699.3,3699.2,44.0078]
[1736195150217,0.27017,3699.3,3699.2,44.27797]
[1736195151127,0.27017,3699.3,3699.2,44.0078]
[1736195151826,0.27017,3699.3,3699.2,44.27797]
[1736195152019,0.27017,3699.3,3699.2,44.0078]
[1736195152719,0.27017,3699.3,3699.2,44.27797]
[1736195153533,0.27017,3699.3,3699.2,44.0078]
[1736195157328,0.27017,3699.3,3699.2,40.8]
[1736195158531,0.27019,3699.1,3699.0,0.27019]
[1736195158719,0.27019,3699.1,3698.7,3.2078]
[1736195159025,0.2702,3698.9,3698.8,41.0702]
[1736195160321,0.67545,3699.2,3698.7,3.2078]
[1736195160522,0.2702,3698.8,3698.7,3.47801]
[1736195160722,0.2702,3698.8,3698.7,44.27801]
[1736195165829,0.2702,3698.9,3698.8,0.27019]
[1736195166529,0.2702,3698.9,3698.8,41.07019]
[1736195171535,0.2702,3698.9,3698.8,40.8]
[1736195171744,0.2702,3698.9,3698.6,3.2078]
[1736195171745,0.27021,3698.7,3698.6,3.2078]
[1736195171935,0.27021,3698.7,3698.6,3.47802]
[1736195176540,0.4316,3698.8,3698.7,0.27021]
[1736195176742,2.11918154,3699.0,3698.6,5.3467842]
[1736195176940,2.11918154,3699.0,3698.9,0.2702]
[1736195177243,2.11918154,3699.0,3698.9,41.0702]
[1736195177446,0.72528,3699.1,3699.0,0.27019]
[1736195179448,0.4551,3699.1,3699.0,0.27019]
[1736195180040,0.72528,3699.1,3699.0,0.27019]
[1736195180355,0.4551,3699.1,3698.9,40.8]
[1736195180649,0.27019,3699.0,3698.9,40.8]
[1736195180845,0.4551,3699.1,3698.6,3.2078]
[1736195181040,0.27021,3698.8,3698.7,0.27021]
[1736195181644,0.2702,3699.0,3698.9,0.27019]
[1736195181837,2.57428154,3699.1,3699.0,0.27019]
[1736195182539,0.4551,3699.1,3699.0,0.27019]
[1736195183342,0.72528,3699.1,3699.0,0.27019]
[1736195185551,2.84446154,3699.1,3699.0,0.27019]
[1736195186547,3.90402072,3699.1,3699.0,0.27019]
[1736195187944,0.72528,3699.1,3699.0,0.27019]
[1736195189144,4.03928235,3699.1,3699.0,0.27019]
[1736195189450,3.58418235,3699.1,3699.0,0.27019]
[1736195190254,2.12446626,3699.1,3699.0,4.49750936]
[1736195193246,2.12446626,3699.1,3699.0,0.27019]
[1736195194652,2.12446626,3699.1,3699.0,4.43743431]
[1736195197659,4.53363046,3699.1,3699.0,4.16724431]
[1736195197954,4.53363046,3699.1,3699.0,3.47684431]
[1736195197955,11.30820203,3699.1,3699.0,3.47684431]
[1736195198560,9.16921783,3699.1,3699.0,3.47684431]
[1736195199055,9.16921783,3699.1,3698.8,0.2702]
[1736195199056,0.2702,3698.9,3698.8,0.2702]
[1736195200454,0.67564503,3698.9,3698.8,0.2702]
[1736195201560,3.86369614,3698.9,3698.8,0.2702]
[1736195202762,0.67564503,3698.9,3698.8,0.2702]
[1736195203250,1.11374503,3698.9,3698.8,0.2702]
[1736195203953,0.7083,3698.9,3698.8,0.2702]
[1736195205556,1.11374503,3698.9,3698.8,0.2702]
[1736195206749,5.35206599,3698.9,3698.8,0.2702]
[1736195208049,0.2702,3698.8,3698.7,41.07021]
[1736195208254,0.7006,3698.8,3698.7,41.07021]
[1736195208457,2.5693842,3698.8,3698.5,4.24208971]
[1736195208755,0.27022,3698.6,3698.5,4.24208971]
[1736195208952,0.27022,3698.6,3698.5,45.04208971]
[1736195209154,0.27022,3698.6,3698.5,4.24208971]
[1736195209548,0.27022,3698.6,3698.4,0.27023]
[1736195209549,4.23832096,3698.6,3698.4,0.27023]
[1736195209753,4.23832096,3698.6,3698.4,41.07023]
[1736195209754,0.27023,3698.5,3698.4,41.07023]
[1736195211156,0.67567503,3698.5,3698.4,41.07023]
[1736195211555,0.67567503,3698.5,3698.4,40.8]
[1736195214457,0.67567503,3698.5,3698.4,41.07023]
[1736195214660,0.67567503,3698.5,3698.4,40.8]
[1736195215063,3.86178898,3698.5,3698.4,40.8]
[1736195216065,3.59155898,3698.5,3698.1,3.2078]
[1736195216361,0.27024,3698.2,3698.1,3.2078]
[1736195216563,0.27024,3698.2,3698.1,44.0078]
[1736195218563,0.27024,3698.2,3698.1,44.27805]
[1736195219494,2.39354279,3698.2,3698.1,44.27805]
[1736195219764,2.39357279,3698.2,3698.1,41.07024]
[1736195220755,2.39357279,3698.2,3698.1,40.8]
[1736195221059,2.39357279,3698.2,3697.6,4.24208971]
[1736195221060,6.40636217,3698.2,3697.6,4.24208971]
[1736195221263,0.27031,3697.7,3697.6,4.24208971]
[1736195221563,0.27031,3697.7,3697.6,45.31240971]
[1736195222466,0.27031,3697.7,3697.6,45.04208971]
[1736195222766,2.39295727,3697.7,3697.6,41.07032]
[1736195223065,2.39295727,3697.7,3697.6,40.8]
[1736195223665,2.39295727,3697.7,3697.6,41.07032]
[1736195224058,2.39295727,3697.7,3697.6,40.8]
[1736195224260,2.39295727,3697.7,3697.6,41.07032]
[1736195224556,2.12264727,3697.7,3697.3,0.4266]
[1736195224762,0.27035,3697.2,3697.1,4.51243971]
[1736195225164,0.27035,3697.2,3697.1,0.27035]
[1736195225359,0.27036,3697.1,3697.0,0.69576]
[1736195225664,3.47816,3697.1,3697.0,0.4254]
[1736195226662,5.60080727,3697.1,3697.0,0.4254]
[1736195227069,0.27038,3696.8,3696.7,0.27038]
[1736195227264,0.27037,3696.9,3696.8,0.27038]
[1736195227460,0.27037,3696.9,3696.6,0.4443]
[1736195227663,0.27037,3696.9,3696.8,0.27038]
[1736195228263,5.60080727,3697.1,3697.0,0.27036]
[1736195228611,0.27037,3697.0,3696.9,0.27037]
[1736195228964,3.2078,3697.1,3697.0,0.27036]
[1736195229164,3.47816,3697.1,3697.0,0.27036]
[1736195229667,3.2078,3697.1,3696.8,40.8]
[1736195229866,0.27037,3697.0,3696.9,0.27036]
[1736195230760,3.47816,3697.1,3696.9,0.27037]
[1736195231070,0.27037,3697.0,3696.9,0.27037]
[1736195232271,3.47816,3697.1,3697.0,0.27036]
[1736195232767,3.47816,3697.1,3696.9,0.27037]
[1736195232967,3.47816,3697.1,3697.0,0.27036]
[1736195233671,3.2078,3697.1,3696.8,40.8]
[1736195233973,3.47816,3697.1,3697.0,0.27036]
[1736195234674,3.2078,3697.1,3696.8,40.8]
[1736195234870,3.2078,3697.1,3697.0,0.27036]
[1736195235473,3.47816,3697.1,3697.0,0.27036]
[1736195235875,3.47813,3697.1,3697.0,0.27034]
[1736195236071,10.33018985,3697.1,3697.0,0.27034]
[1736195236573,10.05985985,3697.1,3697.0,0.27034]
[1736195236776,10.33018985,3697.1,3697.0,0.27034]
[1736195238473,10.05985985,3697.1,3696.8,40.8]
[1736195238779,0.27034,3697.0,3696.9,0.27034]
[1736195239282,10.33018985,3697.1,3697.0,0.27034]
[1736195241778,3.9184,3697.6,3697.5,0.2703]
[1736195242083,10.54988757,3697.6,3697.5,0.2703]
[1736195245883,0.27031,3697.5,3697.4,0.2703]
[1736195247480,0.27031,3697.4,3697.3,0.73001]
[1736195247683,0.27034,3697.1,3697.0,0.27033]
[1736195252887,0.27034,3697.0,3696.9,0.68654]
[1736195254690,0.4337,3697.1,3696.7,40.8]
[1736195254997,0.27035,3696.8,3696.7,41.07035]
[1736195256196,0.27035,3696.8,3696.7,40.8]
[1736195256493,0.27035,3696.8,3696.7,41.07036]
[1736195256900,2.5573842,3696.9,3696.4,3.2078]
[1736195257088,0.27037,3696.5,3696.4,3.2078]
[1736195257695,6.89931806,3696.8,3696.1,40.8]
[1736195258002,0.27039,3696.2,3696.1,40.8]
[1736195261000,2.39303727,3696.2,3696.1,40.8]
[1736195261598,2.12264727,3696.2,3696.1,40.8]
[1736195261798,2.12264727,3696.2,3696.1,41.0704]
[1736195262307,0.27038,3696.5,3696.1,41.0704]
[1736195262308,2.12264727,3696.3,3696.2,0.27039]
[1736195263005,2.39303727,3696.3,3696.2,0.27039]
[1736195263205,0.27039,3696.2,3696.1,41.0704]
[1736195264009,0.27039,3696.2,3696.1,40.8]
[1736195266007,2.39303727,3696.2,3696.1,40.8]
[1736195269011,0.27039,3696.2,3696.1,40.8]
[1736195269507,3.18611395,3696.3,3695.7,0.4391]
[1736195269712,0.27042,3695.8,3695.7,0.4391]
[1736195270208,0.27042,3695.8,3695.7,41.2391]
[1736195271101,0.27042,3695.8,3695.7,41.50953]
[1736195271411,0.27042,3695.8,3695.7,41.2391]
[1736195271610,0.27042,3695.8,3695.7,41.50953]
[1736195272014,0.27042,3695.8,3695.7,41.2391]
[1736195272208,0.27041,3696.0,3695.9,0.27041]
[1736195272411,2.56176454,3696.1,3696.0,0.27041]
[1736195272412,2.39267454,3696.1,3696.0,0.27041]
[1736195273117,0.27041,3696.1,3696.0,0.27041]
[1736195276911,0.27041,3696.1,3695.7,45.53778]
[1736195276912,2.12226454,3696.3,3696.2,0.27039]
[1736195277221,2.12226454,3696.3,3696.2,2.4093742]
[1736195277714,2.12226454,3696.3,3696.2,2.8275742]
[1736195278218,0.27037,3696.6,3696.2,2.5571842]
[1736195278412,0.27037,3696.6,3696.5,0.27037]
[1736195278716,0.27037,3696.6,3696.5,41.07037]
[1736195280013,0.27037,3696.6,3696.5,40.8]
[1736195280218,0.27039,3696.3,3696.2,0.68859]
[1736195280515,0.27039,3696.3,3696.2,0.4182]
[1736195281309,0.67596,3696.4,3695.7,7.44988971]
[1736195281513,0.27042,3695.8,3695.7,8.16321971]
[1736195282312,0.27042,3695.8,3695.7,3.92113]
[1736195284416,0.27042,3695.8,3695.7,0.4429]
[1736195284619,0.27045,3695.5,3695.4,0.70975]
[1736195284820,0.27045,3695.5,3695.4,0.27045]
[1736195285013,0.27045,3695.5,3695.4,0.69455]
[1736195285211,0.27044,3695.6,3695.5,0.27044]
[1736195287312,2.1389842,3695.6,3695.1,0.4477]
[1736195287519,0.27047,3695.2,3695.1,0.71387]
[1736195287715,0.4215,3695.5,3695.2,0.27046]
[1736195287716,0.27046,3695.3,3695.2,0.27046]
[1736195290119,0.27046,3695.4,3695.3,0.27046]
[1736195290620,0.4215,3695.5,3695.4,0.27045]
[1736195300326,0.69195,3695.5,3695.4,0.27045]
[1736195301627,2.81421454,3695.5,3695.4,0.27045]
[1736195302034,2.81421454,3695.5,3695.2,0.27046]
[1736195302035,0.27047,3695.3,3695.2,0.27046]
[1736195303231,2.39273454,3695.3,3695.2,0.27046]
[1736195304332,2.12226454,3695.3,3695.2,0.27046]
[1736195305028,4.23832096,3695.7,3695.2,5.0]
[1736195305232,4.23832096,3695.7,3695.6,5.6172242]
[1736195305626,4.23832096,3695.7,3695.6,46.4172242]
[1736195305827,0.27039,3696.3,3696.2,0.27039]
[1736195306132,1.3402,3696.5,3696.2,3.2078]
[1736195306335,0.27039,3696.4,3696.3,0.27039]
[1736195306731,0.27039,3696.3,3696.2,3.47818]
[1736195309829,0.27038,3696.4,3696.3,0.27038]
[1736195315627,1.3402,3696.5,3696.4,0.27038]
[1736195316033,1.61057,3696.5,3696.4,0.27038]
[1736195330052,0.27039,3696.4,3696.3,0.27038]
[1736195330956,1.3402,3696.5,3696.0,3.2078]
[1736195331155,0.2704,3696.2,3696.1,0.27039]
[1736195334863,0.27039,3696.4,3696.3,0.27038]
[1736195337257,0.8903,3696.5,3696.0,6.0228042]
[1736195337455,1.16067,3696.5,3696.4,0.27038]
[1736195337655,0.8903,3696.5,3696.4,0.27038]
[1736195338160,0.8903,3696.5,3696.4,41.07038]
[1736195339675,1.16067,3696.5,3696.4,41.07038]
[1736195340864,0.27039,3696.4,3696.3,0.27038]
[1736195341063,0.27039,3696.3,3696.2,0.27039]
[1736195341363,0.2704,3696.1,3696.0,7.44864726]
[1736195342664,0.2704,3696.1,3696.0,3.2078]
[1736195342857,2.4093842,3696.1,3696.0,3.2078]
[1736195343862,2.81516928,3696.1,3696.0,3.2078]
[1736195345054,0.67618508,3696.1,3696.0,3.2078]
[1736195345664,0.67618508,3696.1,3696.0,3.47821]
[1736195346160,0.40578508,3696.1,3696.0,3.47821]
[1736195346760,4.50871096,3696.4,3696.3,0.27039]
[1736195348659,0.27039,3696.4,3696.3,0.27039]
[1736195350863,0.27039,3696.4,3696.3,4.51123726]
[1736195351169,0.27039,3696.4,3696.3,4.24084726]
[1736195351467,0.27039,3696.4,3696.3,4.51123726]
[1736195352292,0.67612055,3696.4,3696.3,4.51123726]
[1736195361070,4.23832096,3696.6,3696.5,0.27037]
[1736195361368,4.23832096,3696.6,3696.5,3.47817]
[1736195361575,4.23832096,3696.6,3696.5,44.27817]
[1736195361771,4.23832096,3696.6,3696.5,44.73137]
[1736195361974,4.23832096,3696.9,3696.8,0.27035]
[1736195363880,0.2703,3697.5,3697.4,0.27031]
[1736195364170,4.23832096,3697.6,3697.5,0.2703]
[1736195364774,4.23832096,3697.6,3697.5,41.0703]
[1736195365780,0.27027,3697.9,3697.8,0.27028]
[1736195366583,0.27027,3697.9,3697.8,41.07028]
[1736195368088,0.27027,3697.9,3697.8,0.27028]
[1736195368284,1.14597,3698.0,3697.9,0.27027]
[1736195369883,0.27028,3697.7,3697.6,3.47809]
[1736195370585,0.8757,3698.0,3697.6,3.2078]
[1736195370782,0.8757,3698.0,3697.9,0.27027]
[1736195371085,1.14596,3698.0,3697.9,0.27027]
[1736195376885,0.8757,3698.0,3697.9,0.27027]
[1736195377286,1.14596,3698.0,3697.9,0.27027]
[1736195378793,0.8757,3698.0,3697.9,0.27027]
[1736195379994,1.14596,3698.0,3697.9,0.27027]
[1736195380694,0.8757,3698.0,3697.9,0.27027]
[1736195380894,0.8757,3698.0,3697.9,3.47807]
[1736195381692,1.14596,3698.0,3697.9,3.47807]
[1736195385598,1.14596,3698.0,3697.9,0.27027]
[1736195385821,1.14596,3698.0,3697.9,3.47807]
[1736195387600,1.14596,3698.0,3697.9,3.2078]
[1736195389493,1.14596,3698.0,3697.9,3.47807]
[1736195392204,0.8757,3698.0,3697.9,3.47807]
[1736195393407,0.4397,3698.0,3697.9,3.47807]
[1736195394201,0.4361,3698.6,3697.9,3.47807]
[1736195394407,1.13662,3698.6,3698.5,2.4092142]
[1736195394906,0.8664,3698.6,3698.5,43.2092142]
[1736195395910,1.13662,3698.6,3698.5,43.2092142]
[1736195396401,1.13662,3698.6,3698.5,41.07023]
[1736195399305,1.13662,3698.6,3698.5,0.27023]
[1736195400508,0.27023,3698.5,3698.4,41.07023]
[1736195400710,0.8664,3698.6,3698.5,0.27023]
[1736195400941,1.13662,3698.6,3698.5,0.27023]
[1736195405518,0.27023,3698.5,3698.4,0.27023]
[1736195408017,0.27023,3698.4,3698.3,1.23496639]
[1736195408911,0.27023,3698.4,3698.3,0.96472639]
[1736195409110,0.27025,3698.3,3698.2,0.27024]
[1736195409314,0.27025,3698.2,3698.1,45.04100639]
[1736195409513,1.23497639,3698.2,3698.1,45.04100639]
[1736195411025,0.27025,3698.2,3698.1,45.04100639]
[1736195411318,0.27025,3698.2,3698.1,4.24100639]
[1736195411530,0.27027,3697.9,3697.8,4.24100639]
[1736195412942,0.27028,3697.8,3697.7,0.27028]
[1736195413119,4.64387546,3697.9,3697.7,0.27028]
[1736195413323,4.91415546,3697.9,3697.8,0.27028]
[1736195414131,0.6758345,3697.9,3697.8,0.27028]
[1736195415442,0.27029,3697.6,3697.5,45.04100639]
[1736195416326,0.27029,3697.6,3697.5,40.8]
[1736195416825,0.72399,3697.6,3697.5,41.0703]
[1736195417631,0.72399,3697.6,3697.5,40.8]
[1736195417833,0.72399,3697.6,3697.5,41.0703]
[1736195418235,0.72399,3697.6,3697.5,40.8]
[1736195419184,0.72399,3697.6,3697.3,4.24100639]
[1736195419185,0.27031,3697.4,3697.3,4.24100639]
[1736195419333,0.27032,3697.2,3697.1,6.36150958]
[1736195419524,0.27032,3697.2,3696.8,8.48169452]
[1736195419525,0.27033,3697.1,3697.0,6.36150958]
[1736195419752,3.46405275,3697.1,3697.0,6.36150958]
[1736195420038,10.2426983,3697.1,3697.0,6.36150958]
[1736195421239,10.2426983,3697.1,3696.5,40.8]
[1736195421240,0.27036,3696.6,3696.5,40.8]
[1736195424435,0.27037,3696.5,3696.4,3.2078]
[1736195425139,0.27037,3696.5,3696.4,44.0078]
[1736195425439,0.27037,3696.5,3696.4,3.2078]
[1736195425838,4.93363164,3696.8,3696.4,46.14652275]
[1736195425839,2.11901889,3696.8,3696.4,46.14652275]
[1736195426136,2.11901889,3696.8,3696.7,2.40908275]
[1736195426736,0.22211889,3696.8,3696.7,2.40908275]
[1736195426939,0.2703,3697.5,3697.4,0.27031]
[1736195427239,7.19144803,3697.5,3697.4,0.27031]
[1736195427437,7.19144803,3697.5,3697.4,41.07031]
[1736195427637,7.19144803,3697.5,3697.4,40.8]
[1736195429084,0.4297,3697.8,3697.4,42.93872275]
[1736195429241,0.4297,3697.8,3697.7,0.27028]
[1736195430040,0.69998,3697.8,3697.7,0.27028]
[1736195430744,0.4297,3697.8,3697.7,0.27028]
[1736195430936,0.69998,3697.8,3697.7,0.27028]
[1736195431540,0.4297,3697.8,3697.7,0.27028]
[1736195431738,0.27024,3698.3,3697.7,2.13872275]
[1736195432041,0.27024,3698.3,3698.2,0.27025]
[1736195432637,0.27025,3698.2,3698.1,0.27025]
[1736195434949,0.27025,3698.3,3698.2,0.27024]
[1736195435142,0.4392,3698.4,3697.8,2.13872275]
[1736195435341,0.27025,3698.2,3698.1,0.27025]